[Event "Israel-ch Semi-final 2022"]
[Site "Ramat Gan"]
[Date "2022.05.09"]
[Round "1.1"]
[White "Tzidkiya, Yeshaayahu"]
[Black "Bin-Nun, Peleg"]
[Result "1-0"]
[ECO "C02"]
[WhiteElo "2430"]
[BlackElo "2056"]
[Annotator "TA"]
[PlyCount "91"]
[EventDate "2022.05.09"]
[EventType "swiss"]
[EventCountry "ISR"]
[SourceTitle "playchess.com"]
[Source "ChessBase"]
[SourceQuality "1"]
[TimeControl "40/5400+30:1800+30"]

{[%evp 13,91,0,24,21,21,17,21,23,20,22,14,-37,-20,-15,0,0,15,19,36,18,43,52,48,36,35,39,36,32,75,70,110,116,132,141,139,139,143,135,137,130,129,129,143,143,163,163,163,168,170,170,235,146,253,193,268,261,261,261,472,479,500,489,525,487,876,847,1143,1092,1132,1099,1097,1036,1168,1173,7454,12100,29979,29969,5701,5265]} 1. e4 {[%emt 0:00:02]} e6 {[%emt 0:00:08]} 2. d4 {[%emt 0:00:49]} d5 {[%emt 0:00:10]} 3. e5 {[%emt 0:00:31]} c5 {[%emt 0:00:06]} 4. c3 {[%emt 0:00:03]} Nc6 {[%emt 0:00:05]} 5. Nf3 {[%emt 0:00:04]} Bd7 {[%emt 0:00:04]} 6. Be2 {[%emt 0:00:08]} Nge7 {[%emt 0:00:15]} 7. Na3 {[%emt 0:02:18]} Ng6 {[%emt 0:01:42]} 8. O-O {[%emt 0:02:02] C02: French: Advance Variation.} Be7 {[%emt 0:01:53]} 9. Nc2 {[%emt 0:01:40]} O-O {[%emt 0:03:08]} 10. g3 {[%emt 0:00:32] The position is equal.} cxd4 {[%emt 0:00:44]} 11. cxd4 {[%emt 0:00:11]} f6 {[%emt 0:00:39]} 12. h4 {[%emt 0:07:02] [#]} (12. exf6 $11 Bxf6 13. b3) 12... fxe5 $146 {[%emt 0:03:39]} ({Predecessor:} 12... Nh8 13. exf6 Bxf6 14. Bg5 Nf7 15. Bxf6 Qxf6 16. Ne3 Nh6 17. Qd2 Be8 18. Rad1 Bh5 {½-½ (62) Ralphs,N (2000)-Osborne,M (2244) Bournemouth 2016}) 13. h5 {[%emt 0:00:04]} Nh8 {[%emt 0:04:11]} (13... e4 {looks sharper.} 14. hxg6 exf3 15. gxh7+ Kh8) 14. Nxe5 {[%emt 0:00:08]} Nxe5 {[%emt 0:03:17]} 15. dxe5 {[%emt 0:00:16]} Nf7 {[%emt 0:08:57]} 16. f4 {[%emt 0:01:51]} Bc5+ {[%emt 0:04:18]} 17. Be3 {[%emt 0:00:39]} Bxe3+ {[%emt 0:03:37]} 18. Nxe3 {[%emt 0:00:04]} Qb6 {[%emt 0:01:22]} 19. Qb3 {[%emt 0:04:36]} Qxb3 {[%emt 0:11:24]} 20. axb3 {[%emt 0:00:16]} Rfc8 {[%emt 0:01:57]} 21. Rfc1 {[%emt 0:00:33] White is more active. White now steadily converts the win.} Rxc1+ {[%emt 0:04:21]} 22. Rxc1 {[%emt 0:00:05]} Rc8 {[%emt 0:00:46] Prevents Rc7.} 23. Rxc8+ {[%emt 0:00:04]} Bxc8 $16 {[%emt 0:00:09][%mdl 4096] Endgame KBN-KBN} 24. Bg4 {[%emt 0:00:02]} d4 {[%emt 0:07:27]} 25. Nc2 {[%emt 0:14:48]} d3 {[%emt 0:17:15]} 26. Nb4 {[%emt 0:00:28]} Nh6 {[%emt 0:02:32]} 27. Bd1 {[%emt 0:00:18]} Nf5 {[%emt 0:01:36] [#] White must now prevent ...Ne3.} 28. Kf2 {[%emt 0:00:05] Prevents Ne3.} Bd7 {[%emt 0:02:21]} 29. Nxd3 {[%emt 0:00:34]} b6 {[%emt 0:00:11]} 30. g4 {[%emt 0:01:41]} Ne7 {[%emt 0:03:03]} 31. Bf3 {[%emt 0:00:19]} Bc6 {[%emt 0:02:44]} (31... Nc6 {might work better.} 32. Ke3 Kf7) 32. Nb4 {[%emt 0:01:52]} Bb5 {[%emt 0:05:31]} (32... Bxf3 $16 33. Kxf3 Kf7) 33. Nc2 $18 {[%emt 0:00:14]} Kf7 {[%emt 0:01:13]} (33... g6 {was called for.} 34. hxg6 hxg6) 34. Nd4 {[%emt 0:00:09]} Bd3 {[%emt 0:01:54]} 35. Ke3 {[%emt 0:00:16]} Bb1 {[%emt 0:00:14]} (35... Bf1 36. Be4 g6) 36. Be4 {[%emt 0:00:51]} Bxe4 {[%emt 0:00:10]} 37. Kxe4 {[%emt 0:00:03] KN-KN} g6 {[%emt 0:01:19]} 38. Nf3 {[%emt 0:03:29] [#] aiming for Ng5+.} gxh5 {[%emt 0:01:06]} (38... h6 $142 39. hxg6+ Nxg6) 39. Ng5+ {[%emt 0:00:09]} Ke8 {[%emt 0:01:08]} 40. gxh5 {[%emt 0:00:17][%cal Bg4h5,Bh5h6][%mdl 32]} Kd7 {[%emt 0:02:35]} 41. Nxh7 {[%emt 0:30:18] Threatens to win with Nf8+.} Nf5 {[%emt 0:30:16]} 42. Kf3 {[%emt 0:00:54]} Ke7 {[%emt 0:01:20]} 43. Kg4 {[%emt 0:00:09]} Nd4 {[%emt 0:00:00]} 44. h6 {[%emt 0:00:00] Threatening mate with Ng5.} Kf7 {[%emt 0:00:00]} 45. Kh5 {[%emt 0:00:00]} Kg8 {[%emt 0:00:00]} 46. Ng5 {[%emt 0:00:00] Weighted Error Value: White=0.06 (flawless) /Black=0.51} 1-0

[Event "Israel-ch Semi-final 2022"]
[Site "Ramat Gan"]
[Date "2022.05.09"]
[Round "1.2"]
[White "Rozen, Guy"]
[Black "Dvoirys, Semen I."]
[Result "0-1"]
[ECO "D91"]
[WhiteElo "1967"]
[BlackElo "2439"]
[Annotator "TA"]
[PlyCount "68"]
[EventDate "2022.05.09"]
[EventType "swiss"]
[EventCountry "ISR"]
[SourceTitle "playchess.com"]
[Source "ChessBase"]
[SourceQuality "1"]
[TimeControl "40/5400+30:1800+30"]

{[%evp 13,68,13,17,11,35,38,25,23,50,0,0,0,0,2,9,-48,-38,-33,-43,-72,-44,-333,-87,-284,-275,-283,-266,-282,-134,-141,-137,-133,-64,-66,-64,-129,-139,-116,-129,-103,-129,-135,-94,-122,-77,-85,-38,-38,-38,-176,-175,-516,-466,-693,-686,-942,-847]} 1. d4 {[%emt 0:00:07]} Nf6 {[%emt 0:00:06]} 2. c4 {[%emt 0:00:07]} g6 {[%emt 0:00:07]} 3. Nc3 {[%emt 0:00:23]} d5 {[%emt 0:00:15]} 4. Nf3 {[%emt 0:00:38]} Bg7 {[%emt 0:00:07]} 5. Bg5 {[%emt 0:00:04]} Ne4 {[%emt 0:00:12]} 6. Bf4 {[%emt 0:00:06]} Nxc3 {[%emt 0:00:22]} 7. bxc3 {[%emt 0:00:02]} dxc4 {[%emt 0:03:16][%cal Oc7c5]} 8. e3 {[%emt 0:01:30] D91: Grünfeld: 4 Nf3 Bg7 5 Bg5.} b5 {[%emt 0:03:39] is the legacy move (8...Be6).} 9. a4 {[%emt 0:05:27]} c6 {[%emt 0:00:30]} 10. Qb1 {[%emt 0:19:16] White has an edge.} Qa5 {[%emt 0:15:27]} 11. Kd2 {[%emt 0:09:16]} (11. Qb2 $1 $14 {was preferrable.}) 11... Nd7 $11 {[%emt 0:01:28][%cal Od7c5] ...Nc5! is the strong threat.} 12. axb5 {[%emt 0:01:46]} Qxb5 {[%emt 0:00:05]} 13. Qa2 {[%emt 0:01:17]} Nb6 {[%emt 0:01:27] [#]} 14. Be5 $146 {[%emt 0:15:10]} ({White should play} 14. Ne5 $11) ({Predecessor:} 14. Ne5 Bxe5 15. Bxe5 O-O 16. Rb1 Qa6 17. Rb2 c5 18. Be2 Qxa2 19. Rxa2 Bb7 20. f3 cxd4 21. Bxd4 {1-0 (45) Fajs,B (2173)-Grabowski,B (2048) ICCF email 2006}) 14... O-O $1 $15 {[%emt 0:00:42]} 15. Bxg7 {[%emt 0:00:02]} Kxg7 {[%emt 0:00:10]} 16. Ne5 {[%emt 0:43:19]} Rd8 {[%emt 0:24:52] aiming for ...Qxe5.} 17. Bd3 $2 {[%emt 0:00:00][%mdl 8192]} Bf5 $2 {[%emt 0:02:34]} (17... cxd3 18. Qxf7+ Kh6 19. Rhb1 $18) (17... Be6 $19 {and Black stays clearly on top.} 18. Rhb1 Qd5) 18. Nxc4 {[%emt 0:00:00]} (18. Rhb1 $17 Qd5 19. Bxf5) 18... Bxd3 $19 {[%emt 0:01:30]} 19. Kxd3 {[%emt 0:00:00] [#]} e5 $1 {[%emt 0:10:42] Strongly threatening ...Nxc4.} 20. f3 {[%emt 0:00:00] [#]} exd4 {[%emt 0:02:44] Chess con chili.} (20... f5 $1 $19 {has better winning chances.} 21. Rhb1 e4+ 22. Ke2 Qxc4+ 23. Qxc4 Nxc4) 21. cxd4 $17 {[%emt 0:00:00]} c5 {[%emt 0:00:15] Black is more active.} 22. Rhb1 {[%emt 0:00:00]} Qc6 {[%emt 0:02:23]} (22... Qe8 $17 {Threatens to win with ...cxd4.} 23. Nxb6 axb6) 23. Nxb6 $1 $15 {[%emt 0:00:00]} ({Not} 23. Ne5 $2 Qe8 24. f4 cxd4 25. exd4 f6 $19) 23... axb6 {[%emt 0:00:01]} 24. Qb3 {[%emt 0:00:00]} ({White should try} 24. Qb2 $1 $15) 24... Rxa1 $17 {[%emt 0:06:27]} 25. Rxa1 {[%emt 0:00:00]} cxd4 {[%emt 0:00:21]} 26. exd4 {[%emt 0:00:00][%mdl 4096] Endgame KQR-KQR} Qd6 {[%emt 0:00:10][%csl LRd4,LRh2]} 27. Ra4 {[%emt 0:00:00]} Qxh2 {[%emt 0:00:17]} 28. Qxb6 {[%emt 0:00:00]} Re8 {[%emt 0:00:36]} 29. Qb2 {[%emt 0:00:00]} Qh5 {[%emt 0:04:26]} (29... Kg8 $17 {White must now prevent ...Qg1.} 30. Ra5 (30. Qb5 Rf8 $17) 30... Rd8) 30. d5+ $1 $15 {[%emt 0:00:00]} Kg8 {[%emt 0:00:07]} 31. Rd4 {[%emt 0:00:00]} ({But not} 31. Qd4 $2 Qg5 32. Ra2 Qf5+ 33. Kc3 Qb1 $19) (31. d6 $15) 31... Qf5+ $19 {[%emt 0:02:22]} 32. Kd2 $2 {[%emt 0:02:20]} (32. Re4 {was the crucial defense.}) 32... Qe5 {[%emt 0:02:43] Black is clearly winning.} 33. Kc2 {[%emt 0:05:39]} (33. Qc3 $142 Qe2+ 34. Kc1 Qf1+ 35. Rd1 Qxg2 36. d6) 33... Qe2+ {[%emt 0:01:49]} 34. Kb1 {[%emt 0:00:03]} Qe1+ {[%emt 0:15:18] Weighted Error Value: White=0.86/Black=0.33} 0-1

[Event "Israel-ch Semi-final 2022"]
[Site "Ramat Gan"]
[Date "2022.05.09"]
[Round "1.3"]
[White "Birnboim, Nathan"]
[Black "Aronin, Pavel"]
[Result "1-0"]
[ECO "A31"]
[WhiteElo "2383"]
[BlackElo "1993"]
[Annotator "TA"]
[PlyCount "93"]
[EventDate "2022.05.09"]
[EventType "swiss"]
[EventCountry "ISR"]
[SourceTitle "playchess.com"]
[Source "ChessBase"]
[SourceQuality "1"]
[TimeControl "40/5400+30:1800+30"]

{[%evp 17,93,14,19,13,21,0,22,-11,-4,-11,-1,-26,-14,-14,0,-53,-44,-41,-38,-449,-14,-32,143,145,145,131,158,146,141,149,157,142,194,180,191,100,89,81,93,96,78,59,83,50,52,50,63,54,63,56,74,25,20,9,91,99,109,116,89,72,81,81,222,214,217,156,230,215,308,147,364,364,433,373,884,865,854,514]} 1. d4 {[%emt 0:00:08]} Nf6 {[%emt 0:00:06]} 2. c4 {[%emt 0:00:05]} c5 {[%emt 0:00:05]} 3. Nf3 {[%emt 0:00:25][%cal Bg1f3,Bf3d4,Bd4b5][%mdl 32]} cxd4 {[%emt 0:00:34]} 4. Nxd4 {[%emt 0:00:24]} e5 {[%emt 0:06:07]} 5. Nb5 {[%emt 0:01:11]} d5 {[%emt 0:00:44]} 6. cxd5 {[%emt 0:00:39]} Bc5 {[%emt 0:00:06]} 7. N5c3 {[%emt 0:00:33]} O-O {[%emt 0:03:07]} 8. e3 {[%emt 0:02:02]} e4 {[%emt 0:00:11]} 9. Be2 {[%emt 0:01:56]} Re8 {[%emt 0:04:47]} 10. O-O {[%emt 0:00:28] A31: Symmetrical English: 2 Nf3 Nf6 3 d4.} Nbd7 {[%emt 0:07:11]} 11. Nd2 {[%emt 0:15:51]} Nb6 {[%emt 0:10:21]} 12. Qc2 {[%emt 0:09:53][%cal Rd2e4] The position is equal.} Bf5 {[%emt 0:07:22][%mdl 1024] Black has compensation.} 13. Rd1 {[%emt 0:02:23]} Bd6 {[%emt 0:06:45]} 14. Nf1 {[%emt 0:02:58]} Rc8 {[%emt 0:02:19]} 15. Qb3 {[%emt 0:00:38] [#]} Nbd7 $146 {[%emt 0:08:06]} ({Predecessor:} 15... a6 16. Ng3 Bg6 17. Na4 Nxa4 18. Qxa4 h5 19. Bd2 h4 20. Nf1 Bh5 21. Bxh5 Nxh5 22. Rac1 h3 23. Ng3 Bxg3 24. hxg3 hxg2 25. Rxc8 Qxc8 26. Rc1 {½-½ (26) Hamdani,R (2322)-Rathnakaran,K (2410) Melaka 2012}) 16. a3 {[%emt 0:06:56]} (16. Nb5 $1 $11 Bb8 17. Ng3) 16... Nc5 $15 {[%emt 0:01:52]} 17. Qa2 {[%emt 0:00:13]} Ng4 {[%emt 0:06:41]} ({Much weaker is} 17... Nd3 18. Bxd3 exd3 19. f3 $11) 18. h3 $2 {[%emt 0:08:56][%mdl 8192] [#]} (18. Nb5 $15) 18... Nh6 $2 {[%emt 0:05:57]} (18... Nxf2 $1 $19 {[%mdl 512]} 19. Kxf2 Qg5) 19. Nb5 $1 $11 {[%emt 0:06:03]} a6 $2 {[%emt 0:03:56]} (19... Be5 $15 {stays ahead.}) 20. Nxd6 $16 {[%emt 0:00:12]} Qxd6 {[%emt 0:00:01]} 21. Bd2 {[%emt 0:02:13]} Bd7 {[%emt 0:02:01]} 22. Bb4 {[%emt 0:05:24]} Qg6 {[%emt 0:00:17]} 23. Bxc5 {[%emt 0:02:38]} Rxc5 {[%emt 0:00:19]} 24. Ng3 {[%emt 0:00:45]} Rec8 {[%emt 0:04:20]} (24... Qd6 $16 25. Rac1 Rxc1 26. Rxc1 g6) 25. Qb3 {[%emt 0:03:46] Black must now prevent Bh5.} b5 {[%emt 0:01:27]} 26. Rd2 {[%emt 0:04:10]} (26. d6 $18) 26... f5 {[%emt 0:06:18]} 27. Bf1 {[%emt 0:05:45]} Qd6 {[%emt 0:02:50]} 28. Rad1 {[%emt 0:02:40]} Nf7 {[%emt 0:00:58]} 29. Qb4 {[%emt 0:06:30]} Rc1 {[%emt 0:03:28]} 30. Qd4 {[%emt 0:00:57]} (30. Rxc1 {seems wilder.} Rxc1 31. Qd4 g6 32. Ne2) 30... Rxd1 {[%emt 0:01:17]} 31. Rxd1 {[%emt 0:00:01]} Qc5 {[%emt 0:01:00]} 32. Ne2 {[%emt 0:02:22]} Qxd4 {[%emt 0:01:01]} 33. Nxd4 {[%emt 0:00:13]} Nd6 {[%emt 0:00:05]} 34. b4 {[%emt 0:02:03]} ({Better is} 34. f4 $16) 34... Kf7 $11 {[%emt 0:02:43]} 35. a4 {[%emt 0:01:33]} Kf6 {[%emt 0:00:49]} (35... bxa4 $11 36. Bxa6 Ra8) 36. axb5 $16 {[%emt 0:00:38]} axb5 {[%emt 0:01:15]} 37. Ra1 {[%emt 0:00:13]} Rc7 {[%emt 0:00:55]} 38. Ra5 $36 {[%emt 0:00:56][%cal Rf1b5][%mdl 2048] Keeping Black busy. White is more active.} Rc1 {[%emt 0:00:39] [#]} 39. Ra6 $1 {[%emt 0:02:02]} Ke5 {[%emt 0:00:37]} (39... Ke7 $16) 40. Ra7 $18 {[%emt 0:00:36]} Be8 {[%emt 0:00:47]} 41. Ne2 {[%emt 0:31:14]} Rc8 {[%emt 0:09:21]} (41... Re1 $16) 42. Rxg7 {[%emt 0:00:00]} Kxd5 {[%emt 0:00:33]} (42... h5 $142 43. Nd4 Kf6) 43. Rxh7 {[%emt 0:00:00]} (43. Nf4+ $18 {and White stays clearly on top.} Kc6 44. Rxh7) 43... Nc4 $2 {[%emt 0:01:18]} (43... Kc4 $16 {is a better defense.} 44. Rh6 Rd8) 44. Rh6 {[%emt 0:00:00] White wants to mate with Nf4+.} Bd7 {[%emt 0:01:06]} 45. Ra6 {[%emt 0:00:00] Strongly threatening Nf4+.} Nd2 $2 {[%emt 0:03:12]} (45... Rc6) 46. Nf4+ {[%emt 0:00:00]} Ke5 {[%emt 0:00:08]} 47. Ng6+ {[%emt 0:00:00] Never resign too early!  Weighted Error Value: White=0.38/Black=0.52} 1-0

[Event "Israel-ch Semi-final 2022"]
[Site "Ramat Gan"]
[Date "2022.05.09"]
[Round "1.4"]
[White "Shimshovich, Asaf"]
[Black "Ben Ari, Yannay"]
[Result "0-1"]
[ECO "B87"]
[WhiteElo "1816"]
[BlackElo "2409"]
[Annotator "TA"]
[PlyCount "76"]
[EventDate "2022.05.09"]
[EventType "swiss"]
[EventCountry "ISR"]
[SourceTitle "playchess.com"]
[Source "ChessBase"]
[SourceQuality "1"]
[TimeControl "40/5400+30:1800+30"]

{[%evp 25,76,27,44,0,37,0,0,-37,-37,-46,-44,-56,-53,-74,-75,-79,-82,-69,-60,-58,-53,-54,10,-174,-196,-200,-198,-196,-187,-232,-227,-234,-225,-233,-227,-218,-218,-335,0,0,0,0,19,19,43,-648,-632,-589,-574,-713,-703,-760,-685]} 1. e4 {[%emt 0:00:05]} c5 {[%emt 0:00:28]} 2. Nf3 {[%emt 0:00:07]} d6 {[%emt 0:00:39]} 3. d4 {[%emt 0:00:18]} cxd4 {[%emt 0:00:03]} 4. Nxd4 {[%emt 0:00:04]} Nf6 {[%emt 0:00:08]} 5. Nc3 {[%emt 0:00:04]} a6 {[%emt 0:00:06]} 6. Bc4 {[%emt 0:00:58]} e6 {[%emt 0:00:05]} 7. Bb3 {[%emt 0:00:35]} b5 {[%emt 0:03:24]} 8. O-O {[%emt 0:01:39]} Be7 {[%emt 0:01:45]} 9. Qf3 {[%emt 0:00:50]} Qb6 {[%emt 0:05:15]} 10. Be3 {[%emt 0:11:24]} Qb7 {[%emt 0:00:05]} 11. Qg3 {[%emt 0:10:31]} b4 {[%emt 0:02:07]} 12. Na4 {[%emt 0:04:13]} Nbd7 {[%emt 0:02:54]} 13. f3 {[%emt 0:03:36]} O-O {[%emt 0:13:35]} 14. Ne2 {[%emt 0:01:54] B87: Sicilian Scheveningen/Najdorf: 6 Bc4, with early ...b5.} Rb8 {[%emt 0:07:58] [#]} 15. Qf2 $146 {[%emt 0:01:28]} ({Predecessor:} 15. c4 bxc3 16. Nexc3 Qa8 17. Rfd1 a5 18. Kh1 Ba6 19. Bh6 Nh5 20. Qh3 Nhf6 21. Bf4 Ne5 {½-½ (82) Istratescu,A (2550)-Roeder,M (2435) Groningen 1997}) 15... a5 {[%emt 0:10:01]} 16. g4 {[%emt 0:02:34] The position is equal.} Qc7 {[%emt 0:11:49]} 17. g5 {[%emt 0:11:47]} Nh5 {[%emt 0:04:54]} 18. Qh4 {[%emt 0:10:17] [#]} Ba6 $1 {[%emt 0:11:30]} 19. Rf2 {[%emt 0:08:11]} (19. Qxh5 Bxe2) 19... g6 {[%emt 0:02:47]} 20. Ng3 {[%emt 0:00:51] [#]} Ng7 {[%emt 0:06:23]} 21. f4 {[%emt 0:01:17]} Qc6 {[%emt 0:02:48]} 22. f5 {[%emt 0:06:59]} exf5 {[%emt 0:00:38]} 23. exf5 {[%emt 0:08:21] Hoping for f6.} gxf5 {[%emt 0:03:55]} (23... Bb7 $1 $15 24. Qc4 (24. fxg6 hxg6 25. Raf1 Ne5 $17) 24... Qxc4 25. Bxc4 Ne5) 24. Rxf5 $2 {[%emt 0:01:22]} (24. Nxf5 $2 Nxf5 25. Rxf5 Rb5 $19) (24. Bd4 $11 {and White has nothing to worry.} Ne5 25. Qh6) 24... Ne5 $19 {[%emt 0:02:05] ...Bb7 is the strong threat.} (24... Bb7 25. Rd5 $15) 25. Rxe5 {[%emt 0:07:25]} dxe5 {[%emt 0:00:02] The board is on fire.} 26. Qe4 {[%emt 0:01:26]} Qc7 {[%emt 0:04:04]} 27. g6 {[%emt 0:00:32]} hxg6 {[%emt 0:00:04]} 28. Qxg6 {[%emt 0:00:38] Nh5 would kill now.} Bc4 {[%emt 0:00:02]} 29. Qg4 {[%emt 0:00:38] [#] Intending Nh5 and mate.} Be6 $1 {[%emt 0:01:33]} ({Inferior is} 29... Bxb3 30. Nf5 (30. Nh5 $2 Bg5 $19) 30... Bg5 31. Qxg5 $11) 30. Bxe6 {[%emt 0:00:56]} fxe6 {[%emt 0:00:01]} 31. Bh6 {[%emt 0:01:32]} (31. c4 {is a better defense.}) 31... Bc5+ $2 {[%emt 0:03:09]} (31... Rf7 $19 32. Rf1 Rbf8 33. Rxf7 Rxf7 34. Bxg7 Bc5+ 35. Kg2 (35. Nxc5 $2 Qxc5+ 36. Kh1 Qd5+ 37. Kg1 Rxg7 $19) 35... Qc6+ 36. Qe4 Qxe4+ 37. Nxe4 Rxg7+ 38. Kf3 Rf7+ 39. Ke2 Ba7) 32. Nxc5 $11 {[%emt 0:00:54]} Qxc5+ {[%emt 0:00:01]} 33. Kh1 {[%emt 0:00:12][%csl Gh6][%cal Rg4g7]} Qc6+ {[%emt 0:01:03]} 34. Ne4 {[%emt 0:00:32][%csl Gh6][%cal Rg4g7]} Rb7 {[%emt 0:00:01][%cal Of8f4]} 35. Rg1 $2 {[%emt 0:00:35][%mdl 8192] [#]} (35. Qg2 $14 Qd5 36. Rg1) 35... Rf4 $1 $19 {[%emt 0:00:23][%mdl 512] Black is clearly winning.} 36. Bxf4 {[%emt 0:01:04]} Qxe4+ {[%emt 0:00:03]} 37. Rg2 {[%emt 0:01:21] Threatens to win with Bh6.} exf4 {[%emt 0:01:40][%cal Be5f4,Bf4f3][%mdl 32]} 38. Qd1 {[%emt 0:00:09]} f3 {[%emt 0:00:24] Weighted Error Value: White=0.75/Black=0.26 (precise)} 0-1

[Event "Israel-ch Semi-final 2022"]
[Site "Ramat Gan"]
[Date "2022.05.09"]
[Round "1.5"]
[White "Kochavi, Ori"]
[Black "Shteiman, Yuval"]
[Result "1/2-1/2"]
[ECO "C02"]
[WhiteElo "2365"]
[BlackElo "1984"]
[Annotator "TA"]
[PlyCount "66"]
[EventDate "2022.05.09"]
[EventType "swiss"]
[EventCountry "ISR"]
[SourceTitle "playchess.com"]
[Source "ChessBase"]
[SourceQuality "1"]
[TimeControl "40/5400+30:1800+30"]

{[%evp 17,66,0,12,6,16,0,0,-4,20,-1,45,48,32,38,38,0,0,0,0,0,0,-65,-40,-42,-41,-41,-47,-48,-40,-40,-40,-40,-37,-94,-77,-69,-40,-40,-19,-19,-19,-24,-19,-52,-27,-46,-21,-27,-20,-47,-14]} 1. e4 {[%emt 0:00:01]} e6 {[%emt 0:00:12]} 2. d4 {[%emt 0:00:02]} d5 {[%emt 0:00:04]} 3. e5 {[%emt 0:00:01]} c5 {[%emt 0:00:05]} 4. c3 {[%emt 0:00:02]} Nc6 {[%emt 0:00:04]} 5. Nf3 {[%emt 0:00:03]} Bd7 {[%emt 0:00:03]} 6. Be2 {[%emt 0:00:02]} Nge7 {[%emt 0:00:12]} 7. Na3 {[%emt 0:00:02]} cxd4 {[%emt 0:00:40]} 8. cxd4 {[%emt 0:00:03]} Nf5 {[%emt 0:00:05]} 9. Nc2 {[%emt 0:00:11]} Be7 {[%emt 0:00:15]} 10. O-O {[%emt 0:02:57] C02: French: Advance Variation.} O-O {[%emt 0:00:12] 10...h5 is vanishing.} 11. Rb1 {[%emt 0:06:34]} Rc8 {[%emt 0:05:36]} 12. Bd3 {[%emt 0:03:39] [#] The position is equal.} Kh8 $146 {[%emt 0:09:36]} ({Predecessor:} 12... Nb4 13. Nxb4 Bxb4 14. Bg5 Be7 15. Bxe7 Nxe7 16. Qb3 Nc6 17. Rfc1 Rc7 18. Rc3 h6 {½-½ (53) Blagojevic,T (2260)-Stankovic,M (2435) Paracin 2022}) 13. g4 {[%emt 0:07:55]} Nh4 {[%emt 0:00:09]} (13... Nh6 $11) 14. Nxh4 $14 {[%emt 0:00:19]} Bxh4 {[%emt 0:00:05]} 15. f4 {[%emt 0:00:15] Hoping for g5.} f6 {[%emt 0:10:09] Against g5} 16. g5 {[%emt 0:05:20]} fxg5 {[%emt 0:01:04]} ({Don't play} 16... fxe5 17. dxe5 Be8 18. b3 $16) 17. Qh5 {[%emt 0:00:18][%csl Gd3,LRg5,LRh7][%cal Rh5h7] [#]} g6 {[%emt 0:02:33]} 18. Bxg6 {[%emt 0:00:08][%csl Gg6][%cal Rh5h7]} Qe7 {[%emt 0:00:08]} 19. Bd3 {[%emt 0:10:55]} ({White should play} 19. fxg5 $11 Rxf1+ 20. Kxf1 Rf8+ 21. Kg2) 19... gxf4 {[%emt 0:09:08]} (19... Be8 $5 {[%cal Re8h5]} 20. Qe2 Bg6 21. Bxg6 hxg6 $15) 20. Bxf4 {[%emt 0:00:35] Strongly threatening Kh1.} Rg8+ {[%emt 0:01:18]} 21. Kh1 $1 {[%emt 0:00:04][%cal Of4g3] [#] And now Bg3! would win.} Be8 {[%emt 0:01:00]} (21... Qg7 $2 22. Bg3 (22. Rg1 Qe7 $18) 22... Be8 23. Qxh4 $18) 22. Qe2 {[%emt 0:03:01]} Bg6 {[%emt 0:01:06]} 23. Bxg6 {[%emt 0:19:41]} Rxg6 {[%emt 0:00:26]} 24. Rg1 {[%emt 0:00:30]} Qf7 {[%emt 0:15:16]} 25. Rg4 {[%emt 0:04:53]} (25. Rxg6 $1 $15 hxg6 26. Rf1) 25... Rxg4 {[%emt 0:02:12]} 26. Qxg4 {[%emt 0:00:24]} Be7 {[%emt 0:02:52] aiming for ...Rg8.} (26... Ne7 $5 27. Ne3 (27. Qxh4 Ng6 $15) 27... Qg6 28. Qxg6 hxg6 $15) 27. Rg1 {[%emt 0:06:04]} Rg8 {[%emt 0:03:13]} 28. Qxg8+ {[%emt 0:00:06]} Qxg8 {[%emt 0:00:06]} 29. Rxg8+ {[%emt 0:00:03]} Kxg8 $11 {[%emt 0:00:10] KBN-KBN} 30. a3 {[%emt 0:01:08]} Bd8 {[%emt 0:37:31]} 31. Be3 {[%emt 0:30:44]} Bb6 32. b4 {[%emt 0:00:30]} Ne7 {[%emt 0:01:00]} 33. Bf2 {[%emt 0:00:30]} Nf5 {Weighted Error Value: White=0.14 (very precise) /Black=0.09 (flawless)} 1/2-1/2